bitfinex-derivatives/quotes_BTCF0:USTF0_20220102
["timestamp","ask_amount","ask_price","bid_price","bid_amount"]
[1641149210208,1.07361934,46899.0,46892.0,0.14033567]
[1641149210409,0.90161934,46899.0,46892.0,0.14033567]
[1641149211112,1.08161934,46899.0,46892.0,0.14033567]
[1641149211311,0.9338612,46898.0,46892.0,0.14033567]
[1641149212409,0.9338612,46898.0,46892.0,0.26033567]
[1641149212611,0.9338612,46898.0,46892.0,0.14033567]
[1641149213012,1.1138612,46898.0,46892.0,0.14033567]
[1641149213408,1.02295934,46898.0,46892.0,0.14033567]
[1641149213611,0.18,46898.0,46892.0,0.14033567]
[1641149214009,0.00363911,46897.0,46892.0,0.14033567]
[1641149215010,0.18463911,46897.0,46892.0,0.14033567]
[1641149215209,1.32639629,46896.0,46894.0,0.84463973]
[1641149215412,1.32639629,46896.0,46895.0,0.60325822]
[1641149216011,0.00363911,46896.0,46895.0,0.60325822]
[1641149216211,0.00363911,46896.0,46894.0,0.60325822]
[1641149216911,0.00363911,46897.0,46895.0,0.35803542]
[1641149217111,0.182,46896.0,46895.0,0.35803542]
[1641149217310,0.30318004,46896.0,46895.0,0.35803542]
[1641149217711,0.30318004,46896.0,46894.0,0.60325822]
[1641149217911,0.182,46896.0,46894.0,0.60325822]
[1641149218309,1.44661229,46899.0,46894.0,0.60325822]
[1641149218511,0.12118159,46895.0,46894.0,1.44789795]
[1641149218710,0.12118159,46895.0,46894.0,0.84463973]
[1641149218914,0.12118159,46899.0,46894.0,0.84463973]
[1641149219112,0.183,46895.0,46894.0,0.84463973]
[1641149219312,0.30418159,46895.0,46894.0,0.84463973]
[1641149219513,0.30418159,46895.0,46893.0,0.35785504]
[1641149219913,0.183,46895.0,46893.0,0.35785504]
[1641149220113,0.183,46895.0,46893.0,0.53785504]
[1641149220515,1.21147968,46894.0,46893.0,0.53785504]
[1641149221113,1.36647968,46894.0,46893.0,0.35785504]
[1641149221314,1.36647968,46894.0,46893.0,0.18]
[1641149221518,1.00299439,46894.0,46893.0,0.18]
[1641149222316,1.09389469,46894.0,46893.0,0.18]
[1641149222514,0.93889469,46894.0,46893.0,0.18]
[1641149224318,0.84799439,46894.0,46893.0,0.18]
[1641149224920,0.0312,46907.0,46894.0,1.112]
[1641149225121,1.45366143,46904.0,46902.0,0.18]
[1641149225519,1.45366143,46904.0,46900.0,0.009794]
[1641149225721,0.12116498,46903.0,46902.0,0.18]
[1641149226319,0.12116498,46903.0,46902.0,0.32033567]
[1641149226519,0.0312,46907.0,46902.0,0.32033567]
[1641149226920,0.0312,46907.0,46905.0,0.12]
[1641149227223,0.12115932,46906.0,46905.0,0.12]
[1641149227721,0.12115932,46906.0,46902.0,0.49778355]
[1641149228520,0.12115932,46906.0,46902.0,0.14033567]
[1641149229120,0.29815932,46906.0,46902.0,0.14033567]
[1641149229522,0.12115932,46905.0,46902.0,0.14033567]
[1641149230124,0.12115932,46905.0,46902.0,0.32033567]
[1641149230722,0.12115932,46905.0,46902.0,0.14033567]
[1641149231126,0.181,46905.0,46902.0,0.31933567]
[1641149231323,0.12115932,46904.0,46902.0,0.31933567]
[1641149231724,0.12115932,46904.0,46902.0,0.67678355]
[1641149231926,0.181,46905.0,46902.0,0.67678355]
[1641149232323,0.00363372,46903.0,46902.0,0.49778355]
[1641149232722,0.00363372,46904.0,46902.0,0.49778355]
[1641149232923,0.00363372,46903.0,46902.0,0.49778355]
[1641149233123,0.17763372,46903.0,46902.0,0.68178355]
[1641149234531,0.00363372,46903.0,46902.0,0.49778355]
[1641149234927,0.00363372,46903.0,46902.0,0.14033567]
[1641149235127,0.172,46903.0,46902.0,0.32533567]
[1641149235428,0.17563372,46903.0,46902.0,0.32533567]
[1641149236329,0.29679709,46903.0,46902.0,0.32533567]
[1641149236532,0.12479709,46903.0,46902.0,0.14033567]
[1641149237032,0.29879709,46903.0,46902.0,0.32433567]
[1641149238529,0.12479709,46903.0,46902.0,0.14033567]
[1641149239233,0.28879709,46903.0,46902.0,0.32533567]
[1641149239832,0.16763372,46903.0,46902.0,0.32533567]
[1641149240432,0.00363372,46903.0,46902.0,0.14033567]
[1641149240932,0.00363372,46905.0,46902.0,0.14033567]
[1641149241233,0.26851846,46903.0,46902.0,1.7620326]
[1641149241432,0.26851846,46903.0,46902.0,2.8740326]
[1641149241433,0.26488474,46903.0,46902.0,2.8740326]
[1641149241632,0.26488474,46903.0,46902.0,1.7620326]
[1641149241835,0.17763372,46903.0,46902.0,1.63824518]
[1641149242032,0.17763372,46903.0,46902.0,0.52624518]
[1641149242835,0.17763372,46903.0,46902.0,1.63824518]
[1641149243035,0.00363372,46903.0,46902.0,1.64724518]
[1641149243436,0.36298914,46906.0,46902.0,1.66856094]
[1641149243736,1.33238632,46915.0,46906.0,1.112]
[1641149243955,1.33238632,46915.0,46914.0,1.292]
[1641149244137,1.33238632,46915.0,46914.0,1.36387]
[1641149244337,1.33238632,46916.0,46914.0,1.36387]
[1641149244538,1.56755926,46927.0,46915.0,1.32310559]
[1641149244738,1.56755926,46927.0,46923.0,0.18]
[1641149244934,1.56755926,46927.0,46915.0,0.03110559]
[1641149244935,1.56755926,46927.0,46918.0,0.06]
[1641149245135,0.12111299,46926.0,46924.0,0.009794]
[1641149245340,0.12111299,46926.0,46924.0,0.102864]
[1641149245736,0.12111299,46926.0,46925.0,1.112]
[1641149245936,1.56755926,46927.0,46925.0,1.13330789]
[1641149246138,0.09085259,46933.0,46926.0,0.18]
[1641149246337,0.09085259,46933.0,46925.0,0.02130789]
[1641149246536,0.09085259,46933.0,46932.0,0.14033567]
[1641149247136,0.09085259,46933.0,46932.0,0.30133567]
[1641149247339,0.21195218,46933.0,46932.0,0.30133567]
[1641149247537,0.12109959,46933.0,46932.0,0.30133567]
[1641149248138,0.12109959,46935.0,46932.0,0.30133567]
[1641149248538,0.09085259,46933.0,46932.0,0.14033567]
[1641149249139,0.09085259,46933.0,46932.0,0.29633567]
[1641149249942,0.09085259,46934.0,46932.0,0.29633567]
[1641149250340,0.09085259,46934.0,46932.0,0.14033567]
[1641149250539,0.09085259,46938.0,46932.0,0.14033567]
[1641149251660,0.18,46936.0,46932.0,0.14033567]
[1641149252061,0.09085259,46938.0,46932.0,0.14033567]
[1641149253062,0.09085259,46938.0,46932.0,0.29833567]
[1641149254468,0.09085259,46938.0,46932.0,0.14033567]
[1641149255070,0.09085259,46938.0,46932.0,0.24633567]
[1641149255971,1.42119022,46938.0,46932.0,0.24633567]
[1641149256471,1.42119022,46938.0,46932.0,0.14033567]
[1641149256671,0.18,46936.0,46932.0,0.14033567]
[1641149257072,0.18,46936.0,46932.0,0.30333567]
[1641149257272,1.42119022,46938.0,46932.0,0.30333567]
[1641149257472,0.18,46936.0,46932.0,0.30333567]
[1641149257675,0.08927804,46935.0,46932.0,0.30333567]
[1641149257873,0.18013063,46935.0,46932.0,0.30333567]
[1641149258574,0.09085259,46934.0,46932.0,0.14033567]
[1641149259773,0.00313184,46933.0,46932.0,0.14033567]
[1641149261072,0.07201184,46933.0,46932.0,0.14033567]
[1641149262075,0.16286443,46933.0,46932.0,0.14033567]
[1641149262677,1.37232107,46933.0,46925.0,0.02130789]
[1641149262880,0.18,46928.0,46921.0,0.35449112]
[1641149263477,0.00313184,46927.0,46921.0,0.35449112]
[1641149263678,0.36285851,46926.0,46919.0,0.35449112]
[1641149264378,0.00313184,46925.0,46919.0,0.35449112]
[1641149264780,0.00313184,46925.0,46924.0,0.35449112]
[1641149265579,0.09398443,46925.0,46924.0,0.35449112]
[1641149267281,0.09398443,46925.0,46924.0,0.53149112]
[1641149268480,0.09398443,46925.0,46924.0,0.35449112]
[1641149268780,0.00313184,46925.0,46924.0,0.35449112]
[1641149268981,0.00313184,46925.0,46919.0,0.009794]
[1641149269179,0.00313184,46925.0,46924.0,0.177]
[1641149270586,0.00313184,46925.0,46919.0,0.009794]
[1641149271186,0.00313184,46925.0,46919.0,0.191794]
[1641149271390,0.00313184,46925.0,46921.0,0.0213101]
[1641149272390,0.00313184,46925.0,46919.0,0.191794]
[1641149273089,0.00313184,46925.0,46919.0,0.009794]
[1641149273288,0.00313184,46925.0,46919.0,0.170794]
[1641149274192,0.00313184,46925.0,46919.0,0.350794]
[1641149274588,0.00313184,46925.0,46924.0,0.18]
[1641149274788,0.00313184,46925.0,46924.0,0.26898]
[1641149275188,0.00313184,46925.0,46924.0,0.27798]
[1641149275388,0.00313184,46925.0,46924.0,0.45798]
[1641149275592,0.3625703,46929.0,46924.0,0.45798]
[1641149275593,0.00313184,46928.0,46924.0,0.45798]
[1641149275790,0.00313184,46928.0,46925.0,0.18]
[1641149275990,0.3625703,46929.0,46927.0,0.20130662]
[1641149276191,1.20856766,46934.0,46928.0,1.112]
[1641149276391,1.20856766,46934.0,46931.0,1.292]
[1641149276592,0.36252905,46933.0,46931.0,1.44212967]
[1641149276992,0.36252905,46933.0,46931.0,1.45423806]
[1641149277192,0.36252905,46933.0,46931.0,1.64923806]
[1641149277393,1.20856766,46938.0,46932.0,1.14540986]
[1641149277592,0.20934096,46945.0,46937.0,1.292]
[1641149277792,0.20934096,46945.0,46944.0,1.292]
[1641149277993,0.18,46956.0,46944.0,1.292]
[1641149278393,0.02130147,46958.0,46944.0,1.301794]
[1641149278594,1.20811808,46950.0,46944.0,1.301794]
[1641149279194,1.20811808,46950.0,46944.0,1.490794]
[1641149279693,0.0325,46952.0,46944.0,1.490794]
[1641149280095,0.0325,46952.0,46944.0,1.310794]
[1641149280293,0.0325,46952.0,46945.0,1.31329922]
[1641149280494,0.0325,46952.0,46946.0,0.14033567]
[1641149280697,0.0325,46952.0,46946.0,1.25233567]
[1641149281293,0.0325,46952.0,46946.0,0.32333567]
[1641149281495,0.18,46951.0,46946.0,0.32333567]
[1641149281694,0.26512,46951.0,46946.0,0.32333567]
[1641149282094,0.05651424,46950.0,46946.0,0.32333567]
[1641149282495,0.001,46947.0,46946.0,0.14033567]
[1641149283399,0.196,46947.0,46946.0,0.14033567]
[1641149283596,0.376,46947.0,46946.0,0.14033567]
[1641149284598,0.181,46947.0,46946.0,0.14033567]
[1641149284798,0.001,46947.0,46946.0,0.14033567]
[1641149285218,0.167,46947.0,46946.0,0.30833567]
[1641149286004,1.01272145,46947.0,46946.0,0.30833567]
[1641149286399,1.01272145,46947.0,46946.0,0.168]
[1641149286605,0.84672145,46947.0,46941.0,0.14033567]
[1641149286805,0.32033567,46948.0,46941.0,0.14033567]
[1641149287211,0.47233567,46948.0,46941.0,0.29733567]
[1641149287711,0.29233567,46948.0,46941.0,0.29733567]
[1641149287910,1.32877122,46942.0,46941.0,0.64449549]
[1641149288110,1.32877122,46942.0,46941.0,1.75649549]
[1641149288411,1.32877122,46942.0,46941.0,0.67559034]
[1641149288613,1.32877122,46942.0,46941.0,0.51859034]
[1641149288812,1.32877122,46943.0,46941.0,0.49728949]
[1641149289311,1.50877122,46943.0,46941.0,0.67528949]
[1641149290511,1.32877122,46943.0,46941.0,0.49728949]
[1641149291116,0.00313302,46942.0,46941.0,0.49728949]
[1641149291413,0.00313302,46942.0,46941.0,0.34112967]
[1641149292715,0.00313302,46942.0,46941.0,0.15012967]
[1641149293216,0.00313302,46942.0,46941.0,0.34112967]
[1641149293416,1.33190424,46943.0,46941.0,0.34112967]
[1641149293617,0.00313302,46942.0,46941.0,0.34112967]
[1641149294417,0.00313302,46943.0,46941.0,0.34112967]
[1641149294618,0.00313302,46942.0,46941.0,0.15012967]
[1641149295225,0.00313302,46943.0,46941.0,0.34312967]
[1641149295419,0.00313302,46942.0,46941.0,1.8903982]
[1641149295818,0.00313302,46943.0,46941.0,0.92172937]
[1641149296019,0.00313302,46943.0,46941.0,0.34312967]
[1641149296221,0.00313302,46943.0,46941.0,0.3644305]
[1641149296722,0.00313302,46943.0,46941.0,0.1714305]
[1641149297218,0.03313302,46943.0,46941.0,0.3624305]
[1641149297618,0.03313302,46943.0,46941.0,0.9410302]
[1641149298019,0.00313302,46942.0,46941.0,0.9410302]
[1641149298619,0.00313302,46942.0,46941.0,0.7500302]
[1641149298822,0.00313302,46942.0,46941.0,0.9300302]
[1641149299020,0.00313302,46942.0,46941.0,0.7500302]
[1641149299220,0.00313302,46942.0,46941.0,0.9300302]
[1641149299419,0.00313302,46943.0,46941.0,0.9370302]
[1641149299621,0.00313302,46943.0,46941.0,1.90568248]
[1641149299820,0.00313302,46942.0,46941.0,1.90568248]
[1641149300520,0.00313302,46942.0,46941.0,1.89868248]
[1641149300820,0.00313302,46943.0,46941.0,2.43208278]
[1641149301019,1.32877122,46944.0,46941.0,2.43208278]
[1641149301020,1.21394374,46942.0,46941.0,3.24369709]
[1641149301321,1.21394374,46942.0,46941.0,3.43169709]
[1641149301721,1.21394374,46942.0,46941.0,2.62008278]
[1641149301920,1.21394374,46942.0,46941.0,2.63218851]
[1641149302222,0.00313302,46942.0,46941.0,2.63218851]
[1641149302721,0.00313302,46942.0,46941.0,2.58452418]
[1641149303319,0.00313302,46942.0,46941.0,2.59952418]
[1641149303519,0.00313302,46945.0,46941.0,2.59952418]
[1641149303719,0.00313302,46942.0,46941.0,2.59952409]
[1641149303921,0.00313302,46942.0,46941.0,1.47541836]
[1641149304121,0.00313302,46944.0,46941.0,1.47541836]
[1641149304320,0.00313302,46942.0,46941.0,1.47541836]
[1641149304520,0.00313302,46943.0,46941.0,1.47541836]
[1641149304721,1.21081072,46946.0,46942.0,0.18]
[1641149304920,1.21081072,46946.0,46945.0,1.292]
[1641149305322,1.21081072,46946.0,46945.0,1.31329689]
[1641149305521,0.82211072,46946.0,46945.0,1.31329689]
[1641149305724,0.82211072,46946.0,46945.0,1.32540145]
[1641149305926,1.32877122,46948.0,46945.0,1.32540145]
[1641149306125,1.32877122,46948.0,46946.0,0.009794]
[1641149306322,0.99097122,46948.0,46947.0,1.112]
[1641149306725,0.99097122,46948.0,46947.0,1.26444023]
[1641149307325,0.14033567,46953.0,46947.0,1.46344023]
[1641149307525,0.14033567,46953.0,46950.0,1.112]
[1641149308526,0.14033567,46953.0,46951.0,0.009794]
[1641149308725,0.14033567,46953.0,46952.0,1.31329542]
[1641149308928,0.14033567,46953.0,46952.0,1.13329542]
[1641149309126,0.14033567,46953.0,46952.0,1.31329542]
[1641149309332,0.14033567,46953.0,46952.0,1.51029542]
[1641149310530,0.14033567,46953.0,46952.0,1.31329542]
[1641149310928,0.14033567,46953.0,46952.0,0.02129542]
[1641149311133,0.32033567,46953.0,46945.0,0.02129889]
[1641149311332,0.40523567,46953.0,46952.0,0.196]
[1641149312030,0.4845454,46953.0,46952.0,0.196]
[1641149312232,0.4855454,46953.0,46952.0,0.196]
[1641149312630,0.4855454,46953.0,46941.0,1.39267134]
[1641149312830,0.22523567,46953.0,46945.0,0.02129894]
[1641149313431,0.22523567,46953.0,46945.0,0.19729894]
[1641149313645,0.14033567,46953.0,46945.0,0.19729894]
[1641149314834,0.14033567,46953.0,46945.0,0.02129894]
[1641149315532,0.14033567,46953.0,46951.0,0.3450156]
[1641149315533,1.46649133,46953.0,46951.0,0.3450156]
[1641149316534,1.46649133,46953.0,46951.0,0.4097556]
[1641149317334,1.46649133,46953.0,46952.0,0.3450156]
[1641149317734,1.46649133,46953.0,46952.0,0.4116356]
[1641149318335,1.46649133,46953.0,46952.0,0.06662]
[1641149318538,0.14033567,46953.0,46952.0,0.06662]
[1641149319436,0.14033567,46953.0,46952.0,0.24862]
[1641149320041,0.14346771,46953.0,46952.0,0.24862]
[1641149320236,0.14346771,46953.0,46952.0,1.36062]
[1641149320436,0.14346771,46953.0,46952.0,1.38191509]
[1641149320636,0.14346771,46953.0,46952.0,0.08791509]
[1641149321137,0.14346771,46953.0,46952.0,2.1684144]
[1641149321338,0.14346771,46953.0,46952.0,2.9324404]
[1641149321538,0.14346771,46953.0,46952.0,1.79914531]
[1641149322640,0.14346771,46953.0,46952.0,1.03511931]
[1641149323042,0.14346771,46953.0,46952.0,2.18849727]
[1641149323445,0.14346771,46953.0,46952.0,2.35849727]
[1641149323446,0.33046771,46953.0,46952.0,2.35849727]
[1641149323846,0.33046771,46953.0,46952.0,2.89389087]
[1641149324044,0.33046771,46953.0,46952.0,2.91518675]
[1641149324545,0.33046771,46953.0,46952.0,2.33841519]
[1641149324748,0.14346771,46953.0,46952.0,2.34841519]
[1641149325446,0.14346771,46953.0,46952.0,2.54441519]
[1641149325648,0.14346771,46953.0,46952.0,2.48441519]
[1641149325848,0.14346771,46953.0,46952.0,2.54441519]
[1641149326049,0.14346771,46953.0,46952.0,2.36441519]
[1641149326449,0.14346771,46953.0,46952.0,1.25241519]
[1641149326649,0.14346771,46953.0,46952.0,1.05641519]
[1641149327254,0.14346771,46953.0,46952.0,2.28841519]
[1641149327457,0.14346771,46953.0,46952.0,2.48641519]
[1641149327960,0.14346771,46953.0,46952.0,2.36641519]
[1641149328157,0.14346771,46953.0,46952.0,1.25441519]
[1641149328559,0.14346771,46953.0,46952.0,1.05641519]
[1641149329358,0.14346771,46953.0,46952.0,1.24741519]
[1641149329960,0.14346771,46953.0,46952.0,1.82456783]
[1641149330561,0.14346771,46953.0,46952.0,1.63356783]
[1641149330762,0.14346771,46953.0,46952.0,2.74556783]
[1641149331361,0.14346771,46953.0,46952.0,2.93756783]
[1641149331563,0.14346771,46953.0,46952.0,1.82556783]
[1641149331962,0.32346771,46953.0,46948.0,1.15430527]
[1641149332162,0.18,46949.0,46942.0,1.17958156]
[1641149332366,0.18,46946.0,46942.0,1.17958156]
[1641149332563,0.26479,46946.0,46942.0,1.17958156]
[1641149332761,0.08792204,46946.0,46942.0,2.29158156]
[1641149333161,0.22825771,46946.0,46939.0,1.29001736]
[1641149333361,0.41625771,46946.0,46939.0,1.29001736]
[1641149333562,0.18313204,46945.0,46940.0,0.01210581]
[1641149333971,0.00313204,46944.0,46940.0,0.01210581]
[1641149335177,0.14033567,46941.0,46940.0,0.01210581]
[1641149335574,0.189,46944.0,46940.0,1.30410581]
[1641149335774,0.189,46944.0,46943.0,1.292]
[1641149336177,0.189,46944.0,46943.0,1.301794]
[1641149336374,0.86231603,46950.0,46943.0,1.33519742]
[1641149336576,0.13618606,46960.0,46949.0,1.292]
[1641149336775,0.13618606,46960.0,46956.0,1.292]
[1641149336975,0.13618606,46960.0,46956.0,1.37509]
[1641149337375,0.36374532,46962.0,46959.0,1.31329183]
[1641149337775,0.36374532,46962.0,46959.0,1.292]
[1641149338176,0.14033567,46968.0,46959.0,1.292]
[1641149338377,0.14033567,46968.0,46967.0,1.13328836]
[1641149338586,0.14033567,46968.0,46967.0,1.18436]
[1641149338778,1.8737,46980.0,46967.0,1.18436]
[1641149338980,0.18,46976.0,46967.0,1.19646581]
[1641149339178,0.18,46980.0,46967.0,0.07236]
[1641149339378,0.18,46976.0,46968.0,1.13328836]
[1641149339580,0.14033567,46981.0,46968.0,1.13328836]
[1641149339779,0.32033567,46981.0,46968.0,1.13328836]
[1641149339979,0.18,46980.0,46968.0,1.13328836]
[1641149340182,0.18,46980.0,46968.0,0.02128836]
[1641149340379,0.18,46976.0,46968.0,0.02128836]
[1641149341279,0.18,46976.0,46968.0,0.20228836]
[1641149341879,1.63223391,46975.0,46968.0,0.20228836]
[1641149343283,0.18,46969.0,46968.0,0.18]
[1641149343483,0.18,46969.0,46963.0,1.14343291]
[1641149343484,0.26668,46969.0,46963.0,1.14343291]
[1641149343683,0.18,46964.0,46963.0,1.14343291]
[1641149344084,0.23987119,46964.0,46963.0,1.14343291]
[1641149344286,0.24087119,46964.0,46963.0,1.14343291]
[1641149344684,0.24087119,46964.0,46949.0,2.72634436]
[1641149344886,0.18,46957.0,46949.0,2.72634436]
[1641149345083,0.26576,46957.0,46949.0,2.72634436]
[1641149345288,0.59309567,46957.0,46950.0,1.37133117]
[1641149345486,0.59309567,46957.0,46953.0,1.25241669]
[1641149345685,0.41309567,46957.0,46953.0,1.25241669]
[1641149345886,0.59309567,46957.0,46953.0,1.25241669]
[1641149346086,0.009794,46956.0,46953.0,1.25241669]
[1641149346287,0.18,46954.0,46945.0,0.14033567]
[1641149347086,0.18,46954.0,46946.0,0.01210417]
[1641149347288,0.366,46954.0,46946.0,0.01210417]
[1641149347487,0.18,46953.0,46946.0,0.01210417]
[1641149347889,0.18,46953.0,46946.0,0.9805588]
[1641149348287,0.186,46954.0,46946.0,0.01210417]
[1641149348486,0.18,46953.0,46947.0,0.01210417]
[1641149348687,0.25970266,46956.0,46947.0,0.01210417]
[1641149348988,0.25970266,46956.0,46946.0,0.01210417]
[1641149349187,0.009794,46956.0,46947.0,1.112]
[1641149349389,0.186,46956.0,46952.0,0.18]
[1641149349588,1.45223391,46960.0,46955.0,1.31329274]
[1641149349989,1.45223391,46960.0,46955.0,1.13329274]
[1641149350190,1.45223391,46964.0,46956.0,0.01210417]
[1641149350392,1.45223391,46964.0,46959.0,0.02129223]
[1641149350589,1.45223391,46964.0,46960.0,1.112]
[1641149350788,1.45223391,46964.0,46960.0,1.12410417]
[1641149350988,0.0031261,46963.0,46960.0,1.112]
[1641149351189,0.0031261,46963.0,46962.0,0.14033567]
[1641149351688,1.45223391,46971.0,46962.0,0.14033567]
[1641149351890,1.45223391,46971.0,46963.0,1.112]
[1641149352489,1.33128517,46967.0,46963.0,1.112]
[1641149353089,0.00270435,46966.0,46965.0,1.112]
[1641149353391,0.84979211,46966.0,46965.0,1.292]
[1641149353589,1.21012537,46968.0,46965.0,1.292]
[1641149353791,1.21012537,46968.0,46965.0,1.30409975]
[1641149353988,1.21012537,46968.0,46965.0,1.292]
[1641149354189,1.21012537,46968.0,46964.0,0.96845463]
[1641149354390,0.14033567,46973.0,46965.0,2.08045463]
[1641149354391,1.21012537,46970.0,46965.0,2.08045463]
[1641149354790,1.21012537,46970.0,46966.0,0.01209971]
[1641149355289,1.21012537,46970.0,46967.0,1.112]
[1641149355890,1.21012537,46969.0,46968.0,0.57117699]
[1641149356292,1.21012537,46969.0,46966.0,1.16445463]
[1641149356493,1.21012537,46969.0,46968.0,0.96845463]
[1641149356692,1.21012537,46969.0,46968.0,0.9897423]
[1641149356892,1.21012537,46969.0,46968.0,1.00184171]
[1641149357293,1.21012537,46969.0,46968.0,1.19884171]
[1641149357693,1.21012537,46970.0,46968.0,1.19884171]
[1641149358096,1.21012537,46970.0,46968.0,1.1867423]
[1641149358593,1.21012537,46970.0,46968.0,0.9897423]
[1641149358793,1.21012537,46970.0,46969.0,0.96845463]
[1641149359392,1.21012537,46970.0,46969.0,1.16445463]
[1641149359995,1.47162084,46973.0,46969.0,0.196]
[1641149360193,1.33128517,46972.0,46970.0,1.112]
[1641149360593,1.33128517,46972.0,46968.0,0.57241341]
[1641149360993,0.14033567,46973.0,46971.0,1.54047084]
[1641149362192,0.14033567,46973.0,46968.0,1.34036657]
[1641149362193,0.14033567,46973.0,46972.0,0.34363878]
[1641149363396,0.14033567,46973.0,46972.0,0.53763878]
[1641149364197,0.14033567,46973.0,46972.0,1.67092468]
[1641149364597,0.14033567,46973.0,46972.0,1.47692468]
[1641149365399,0.14033567,46973.0,46972.0,0.2172859]
[1641149365600,0.14033567,46973.0,46972.0,1.18529744]
[1641149365799,0.14033567,46973.0,46972.0,2.27601154]
[1641149366005,0.14033567,46973.0,46972.0,2.29729789]
[1641149366201,0.14033567,46973.0,46972.0,2.47729789]
[1641149366401,1.33128517,46977.0,46972.0,2.55901789]
[1641149366602,1.33128517,46977.0,46975.0,1.292]
[1641149366802,1.33128517,46977.0,46976.0,1.13328263]
[1641149367005,1.59256958,46980.0,46976.0,1.13328263]
[1641149367207,1.59256958,46980.0,46979.0,1.112]
[1641149367405,1.45223391,46980.0,46979.0,1.112]
[1641149367605,1.45223391,46980.0,46979.0,0.18]
[1641149367806,1.45223391,46980.0,46979.0,1.292]
[1641149368005,1.45223391,46980.0,46978.0,0.14033567]
[1641149368205,0.13613424,46981.0,46979.0,0.96801154]
[1641149368408,1.45223391,46987.0,46979.0,0.96801154]
[1641149368806,1.45223391,46987.0,46979.0,2.08001154]
[1641149369006,1.45223391,46987.0,46979.0,0.96801154]
[1641149369206,0.14592824,46988.0,46981.0,0.34403501]
[1641149369207,1.45223391,46986.0,46981.0,0.34403501]
[1641149369907,1.45223391,46986.0,46982.0,1.112]
[1641149370108,1.45223391,46986.0,46982.0,1.20041]
[1641149370308,1.45223391,46986.0,46982.0,0.08841]
[1641149370911,1.45223391,46987.0,46982.0,0.08841]
[1641149371309,1.45223391,46987.0,46982.0,0.27441]
[1641149372008,0.14033567,46989.0,46984.0,0.02128077]
[1641149372009,1.59256958,46989.0,46984.0,0.02128077]
[1641149372909,1.59256958,46989.0,46985.0,1.112]
[1641149373509,1.59256958,46989.0,46984.0,0.19828077]
[1641149373908,0.14033567,46989.0,46985.0,1.232]
[1641149374110,0.14033567,46989.0,46987.0,0.02127936]
[1641149374510,0.14033567,46989.0,46988.0,1.112]
[1641149375321,0.14033567,46989.0,46988.0,1.297]
[1641149376731,0.14033567,46989.0,46988.0,1.292]
[1641149376930,1.45223391,46991.0,46988.0,1.292]
[1641149377431,1.45223391,46991.0,46990.0,1.25233567]
[1641149377631,1.45223391,46993.0,46990.0,1.25233567]
[1641149378635,1.47223391,46995.0,46990.0,1.25233567]
[1641149379433,1.47223391,46995.0,46990.0,1.43733567]
[1641149379835,1.47223391,46995.0,46992.0,0.02127732]
[1641149380136,1.47223391,46995.0,46993.0,1.112]
[1641149380938,0.02,46995.0,46993.0,1.112]
[1641149381344,0.02,46995.0,46993.0,1.297]
[1641149382735,0.02,46995.0,46993.0,1.112]
[1641149383335,0.02,46995.0,46994.0,1.13327529]
[1641149383535,0.02,46995.0,46994.0,1.31327529]
[1641149384138,0.02,46995.0,46994.0,1.13327529]
[1641149384536,0.02,46995.0,46994.0,1.31327529]
[1641149384837,0.02,46995.0,46994.0,1.13327529]
[1641149385036,0.02,46995.0,46994.0,2.10082625]
[1641149385438,0.02,46995.0,46994.0,2.28982625]
[1641149386037,0.02,46995.0,46994.0,3.08624132]
[1641149386840,0.02,46995.0,46994.0,2.95387132]
[1641149387237,0.02,46995.0,46994.0,1.98632036]
[1641149387439,0.02,46995.0,46994.0,1.38190529]
[1641149388338,0.02,46995.0,46994.0,2.34944657]
[1641149388540,0.02,46995.0,46994.0,3.14586164]
[1641149388942,0.02,46995.0,46994.0,2.95386164]
[1641149389139,0.02,46995.0,46994.0,2.34953839]
[1641149389340,0.02,46995.0,46994.0,2.54253839]
[1641149389541,0.02,46995.0,46994.0,3.68790496]
[1641149389943,0.02,46995.0,46994.0,3.68890496]
[1641149390147,0.50764198,46998.0,46994.0,3.6889003]
[1641149390342,0.39754198,46998.0,46997.0,1.293]
[1641149390542,1.1452608,47002.0,47001.0,1.112]
[1641149390742,1.1452608,47002.0,47001.0,1.292]
[1641149390942,1.1452608,47002.0,47001.0,1.30470582]
[1641149391343,1.3302923,47005.0,47001.0,1.50070582]
[1641149391545,0.1252923,47005.0,47004.0,1.57267134]
[1641149391743,0.1252923,47013.0,47004.0,1.64128134]
[1641149391943,0.1252923,47013.0,47012.0,1.112]
[1641149392342,0.1852923,47013.0,47005.0,0.01209182]
[1641149392543,0.2080023,47013.0,47004.0,0.30193789]
[1641149392742,0.18,47011.0,47004.0,0.30193789]
[1641149393142,0.08271,47013.0,47004.0,0.30193789]
[1641149393343,0.009794,47016.0,47012.0,1.53380702]
[1641149393743,0.14033567,47017.0,47013.0,1.112]
[1641149394546,1.45223391,47020.0,47016.0,1.112]
[1641149394748,1.45223391,47020.0,47019.0,1.292]
[1641149395148,1.57326269,47024.0,47019.0,1.612413]
[1641149395347,1.57326269,47024.0,47023.0,1.112]
[1641149395548,1.57326269,47024.0,47023.0,1.39367134]
[1641149395747,1.57326269,47024.0,47023.0,1.71228434]
[1641149396149,0.11166269,47024.0,47023.0,1.74562946]
[1641149396352,1.62414074,47035.0,47023.0,1.74562946]
[1641149396550,0.0212557,47057.0,47035.0,0.2251365]
[1641149396753,0.02,47045.0,47039.0,1.112]
[1641149397049,0.02,47045.0,47041.0,1.112]
[1641149397249,0.02,47045.0,47044.0,1.112]
[1641149397549,0.02,47045.0,47044.0,1.0694]
[1641149397748,0.02,47045.0,47044.0,1.09065135]
[1641149398651,0.8,47067.0,47044.0,2.16246921]
[1641149398850,0.3,47067.0,47056.0,0.18]
[1641149399050,0.3,47067.0,47057.0,1.0694]
[1641149399249,0.3,47067.0,47057.0,1.383083]
[1641149399650,0.247,47067.0,47066.0,0.02124264]
[1641149399950,0.236,47067.0,47066.0,1.09064264]
[1641149400149,0.236,47067.0,47064.0,0.14033567]
[1641149400350,0.236,47067.0,47065.0,1.112]
[1641149400552,0.236,47067.0,47066.0,0.0212425]
[1641149400850,0.416,47067.0,47061.0,0.02124597]
[1641149401050,0.3275,47067.0,47060.0,0.14033567]
[1641149401252,0.3275,47067.0,47061.0,1.112]
[1641149401453,0.3275,47067.0,47061.0,1.293]
[1641149402054,0.18,47065.0,47061.0,0.181]
[1641149402252,0.18,47062.0,47061.0,0.181]
[1641149402453,0.254094,47062.0,47054.0,0.14033567]